fUSD/lending_fUSD_20260425
["ID","MTS","AMOUNT","RATE_DAILY","PERIOD"]
[421117777,1777084757887,500.0,7.364e-05,2]
[421117778,1777084757940,210.37603791,7.364e-05,2]
[421117779,1777084762573,1200.0,7.364e-05,2]
[421117780,1777084801126,300.0,7.364e-05,2]
[421117781,1777084801403,1200.0,7.364e-05,2]
[421117782,1777084817610,467.8435,7.265e-05,2]
[421117783,1777084861136,300.0,7.364e-05,2]
[421117784,1777084888049,3839.732,7.218e-05,2]
[421117785,1777084888079,262.474,7.218e-05,2]
[421117786,1777084921181,300.0,7.364e-05,2]
[421117787,1777084921530,150.0,7.364e-05,2]
[421117788,1777084981225,202.57557338,7.364e-05,2]
[421117789,1777084981250,97.42442662,7.364e-05,2]
[421117790,1777085041175,300.0,7.364e-05,2]
[421117791,1777085101127,300.0,7.364e-05,2]
[421117792,1777085101158,1200.0,7.364e-05,2]
[421117793,1777085101688,150.0,7.364e-05,2]
[421117794,1777085105636,537.96555583,7.364e-05,2]
[421117795,1777085243871,3800.0,7e-05,2]
[421117796,1777085281207,300.0,7.364e-05,2]
[421117797,1777085281395,150.0,7.364e-05,2]
[421117798,1777085330651,3164.62001755,7.265e-05,2]
[421117799,1777085330678,10000.01,7.265e-05,2]
[421117800,1777085330705,10000.01,7.265e-05,2]
[421117801,1777085330732,10000.01,7.265e-05,2]
[421117802,1777085330759,10000.01,7.265e-05,2]
[421117803,1777085330784,10000.01,7.265e-05,2]
[421117804,1777085330810,10000.01,7.265e-05,2]
[421117805,1777085330839,10000.01,7.265e-05,2]
[421117806,1777085330865,10000.01,7.265e-05,2]
[421117807,1777085330891,8980.68058245,7.265e-05,2]
[421117808,1777085348010,-1138.0,7.265e-05,3]
[421117809,1777085405503,179.0,7.265e-05,3]
[421117810,1777085405791,1081.0,7.265e-05,3]
[421117813,1777085431531,-250.0,7.499e-05,2]
[421117814,1777085431541,-300.0,7.632e-05,2]
[421117815,1777085431552,-1200.0,7.632e-05,2]
[421117816,1777085431562,-201.28868678,7.633e-05,2]
[421117817,1777085431572,-695.39793187,7.633e-05,2]
[421117818,1777085431584,-1377.42282659,7.633e-05,2]
[421117819,1777085431594,-174.61919141,7.633e-05,2]
[421117820,1777085431604,-151.06,7.755e-05,2]
[421117821,1777085431614,-179.0,8.041e-05,3]
[421117822,1777085431624,-1081.0,8.041e-05,3]
[421117823,1777085431635,-150.0,8.088e-05,2]
[421117824,1777085431644,-150.0,8.088e-05,2]
[421117825,1777085431654,-150.0,8.088e-05,2]
[421117826,1777085431664,-150.0,8.088e-05,2]
[421117827,1777085431675,-150.0,8.088e-05,2]
[421117828,1777085431685,-150.0,8.088e-05,2]
[421117829,1777085431695,-150.0,8.088e-05,2]
[421117830,1777085431706,-661.44353039,8.099e-05,2]
[421117831,1777085431717,-255.0,8.1e-05,2]
[421117832,1777085431727,-250.0,8.101e-05,2]
[421117833,1777085431737,-150.0,8.148e-05,2]
[421117834,1777085431747,-150.0,8.162e-05,2]
[421117835,1777085431758,-1428.38747117,8.181e-05,2]
[421117836,1777085431769,-181.08010149,8.181e-05,2]
[421117837,1777085431779,-150.0,8.207e-05,2]
[421117838,1777085431789,-300.0,8.249e-05,2]
[421117839,1777085431801,-300.0,8.249e-05,2]
[421117840,1777085431812,-300.0,8.249e-05,2]
[421117841,1777085431822,-300.0,8.249e-05,2]
[421117842,1777085431832,-301.9019895,8.249e-05,2]
[421117843,1777085431842,-2463.45183956,8.249e-05,2]
[421117845,1777085431853,-250.0,8.249e-05,2]
[421117847,1777085431862,-150.0,8.267e-05,2]
[421117849,1777085431873,-150.0,8.267e-05,2]
[421117851,1777085431883,-150.0,8.312e-05,2]
[421117853,1777085431892,-150.0,8.327e-05,2]
[421117855,1777085431902,-150.0,8.387e-05,2]
[421117856,1777085431912,-150.0,8.387e-05,2]
[421117857,1777085431922,-150.0,8.388e-05,2]
[421117858,1777085431931,-420.0,8.395e-05,2]
[421117859,1777085431942,-1680.0,8.395e-05,2]
[421117860,1777085431952,-52438.4780664,8.398e-05,2]
[421117861,1777085431962,-150.0,8.447e-05,2]
[421117862,1777085431971,-150.0,8.447e-05,2]
[421117863,1777085431981,-150.0,8.507e-05,2]
[421117864,1777085431991,-150.0,8.537e-05,2]
[421117865,1777085432000,-150.0,8.537e-05,2]
[421117866,1777085432010,-150.0,8.567e-05,2]
[421117867,1777085432019,-150.0,8.615e-05,2]
[421117868,1777085432031,-509.0,8.621e-05,5]
[421117869,1777085432042,-150.0,8.627e-05,2]
[421117870,1777085432052,-150.0,8.627e-05,2]
[421117871,1777085432062,-150.0,8.687e-05,2]
[421117872,1777085432072,-150.0,8.687e-05,2]
[421117873,1777085432081,-426.95040374,8.729e-05,2]
[421117874,1777085432094,-638.34053726,8.729e-05,2]
[421117875,1777085432111,-378.71365915,8.729e-05,2]
[421117876,1777085432139,-37.23320746,8.729e-05,2]
[421117877,1777085432149,-187.78006525,8.729e-05,2]
[421117878,1777085432159,-67.96372731,8.747e-05,2]
[421117879,1777085432175,-82.03627269,8.747e-05,2]
[421117880,1777085432184,-150.0,8.762e-05,2]
[421117881,1777085432194,-250.0,8.767e-05,2]
[421117882,1777085432204,-274.74,8.767e-05,2]
[421117883,1777085432215,-150.0,8.807e-05,2]
[421117884,1777085432224,-150.0,8.807e-05,2]
[421117885,1777085432234,-179.0,8.816e-05,3]
[421117886,1777085432244,-1081.0,8.816e-05,3]
[421117887,1777085432254,-24192.95958609,8.823e-05,2]
[421117890,1777085438555,-7301.41972174,8.823e-05,2]
[421117891,1777085438567,-4173.05069217,8.823e-05,2]
[421117892,1777085438577,-1213.1,8.823e-05,2]
[421117893,1777085438587,-150.99,8.823e-05,2]
[421117894,1777085438596,-24999.99,8.823e-05,2]
[421117895,1777085438606,-999.99,8.823e-05,2]
[421117896,1777085438615,-7178.01,8.823e-05,2]
[421117897,1777085438624,-299.99,8.823e-05,2]
[421117898,1777085438633,-971.45,8.823e-05,2]
[421117899,1777085438642,-3281.22161922,8.835e-05,2]
[421117900,1777085438652,-150.0,8.842e-05,2]
[421117901,1777085438661,-639.0,8.842e-05,5]
[421117902,1777085438671,-150.0,8.866e-05,2]
[421117903,1777085438680,-259.50923041,8.874e-05,2]
[421117904,1777085438689,-168.68,8.902e-05,2]
[421117905,1777085438699,-168.68,8.902e-05,2]
[421117906,1777085438708,-433.0,8.91e-05,2]
[421117907,1777085438718,-150.0,8.926e-05,2]
[421117908,1777085438727,-269.90267866,8.966e-05,2]
[421117909,1777085438736,-221.16271067,8.986e-05,2]
[421117910,1777085438745,-150.8738038,8.986e-05,2]
[421117911,1777085438755,-158.65291331,8.986e-05,2]
[421117912,1777085438764,-151.77252874,8.986e-05,2]
[421117913,1777085438773,-198.27682526,8.986e-05,2]
[421117914,1777085438782,-191.57413809,8.986e-05,2]
[421117915,1777085438791,-5009.24504834,9e-05,2]
[421117916,1777085438800,-1402.70863658,9e-05,3]
[421117917,1777085438812,-6297.29136342,9e-05,3]
[421117918,1777085438823,-1207.0,9e-05,2]
[421117919,1777085438833,-278.09636252,9.063e-05,2]
[421117920,1777085438843,-160.10949026,9.068e-05,2]
[421117921,1777085438853,-1532.0,9.079e-05,2]
[421117922,1777085438864,-1532.0,9.079e-05,2]
[421117923,1777085438873,-1532.0,9.079e-05,2]
[421117924,1777085438884,-1544.92629203,9.079e-05,2]
[421117925,1777085438893,-777.26377561,9.079e-05,2]
[421117926,1777085438905,-713.82683403,9.079e-05,2]
[421117927,1777085438924,-40.90939036,9.079e-05,2]
[421117928,1777085438934,-262.06446082,9.178e-05,2]
[421117929,1777085438945,-237.93553918,9.178e-05,2]
[421117930,1777085438955,-500.0,9.178e-05,2]
[421117931,1777085438964,-500.0,9.178e-05,2]
[421117932,1777085438973,-500.0,9.178e-05,2]
[421117933,1777085438982,-500.0,9.178e-05,2]
[421117934,1777085438991,-337.83563645,9.178e-05,2]
[421117936,1777085439000,-1048.0,9.22e-05,2]
[421117938,1777085439009,-3531.0,9.22e-05,2]
[421117940,1777085439018,-623.0,9.22e-05,2]
[421117941,1777085439027,-150.124,9.22e-05,2]
[421117942,1777085439036,-150.0,9.22e-05,2]
[421117943,1777085439045,-2475.0,9.22e-05,2]
[421117944,1777085439055,-3781.0,9.22e-05,2]
[421117945,1777085439064,-315.04936091,9.234e-05,2]
[421117946,1777085439075,-271.95063909,9.234e-05,2]
[421117947,1777085439085,-325.39557483,9.234e-05,2]
[421117948,1777085439096,-2025.60442517,9.234e-05,2]
[421117949,1777085439105,-501.0,9.26e-05,2]
[421117950,1777085439114,-305.69076801,9.277e-05,2]
[421117951,1777085439124,-160.0,9.321e-05,2]
[421117952,1777085439132,-726.270593,9.321e-05,2]
[421117953,1777085439141,-1292.541187,9.321e-05,2]
[421117954,1777085439152,-160.0,9.321e-05,2]
[421117955,1777085439162,-882.376908,9.321e-05,2]
[421117956,1777085439171,-1604.753817,9.321e-05,2]
[421117957,1777085439180,-160.0,9.321e-05,2]
[421117958,1777085439189,-666.811308,9.321e-05,2]
[421117959,1777085439198,-1173.622616,9.321e-05,2]
[421117960,1777085439208,-160.0,9.321e-05,2]
[421117961,1777085439217,-731.955423,9.321e-05,2]
[421117962,1777085439227,-1303.910846,9.321e-05,2]
[421117963,1777085439237,-160.0,9.321e-05,2]
[421117964,1777085439246,-437.828885,9.321e-05,2]
[421117965,1777085439255,-715.657771,9.321e-05,2]
[421117966,1777085439264,-160.0,9.321e-05,2]
[421117967,1777085439274,-671.732745,9.321e-05,2]
[421117968,1777085439283,-1183.46549,9.321e-05,2]
[421117969,1777085439292,-162.24807931,9.386e-05,2]
[421117970,1777085439302,-160.0,9.386e-05,2]
[421117971,1777085439311,-392.7,9.392e-05,2]
[421117972,1777085439321,-151.0,9.393e-05,2]
[421117973,1777085439330,-151.0,9.399e-05,2]
[421117974,1777085439339,-151.0,9.42e-05,2]
[421117975,1777085439348,-220.14198,9.42e-05,2]
[421117976,1777085439359,-345.75211,9.511e-05,2]
[421117977,1777085439368,-345.75211,9.511e-05,2]
[421117978,1777085439377,-345.75211,9.511e-05,2]
[421117979,1777085439387,-345.75211,9.511e-05,2]
[421117980,1777085439396,-1532.0,9.511e-05,2]
[421117981,1777085439406,-1532.0,9.511e-05,2]
[421117982,1777085439415,-1532.0,9.511e-05,2]
[421117983,1777085439424,-1532.0,9.511e-05,2]
[421117984,1777085439433,-1532.0,9.511e-05,2]
[421117985,1777085439442,-1532.0,9.511e-05,2]
[421117986,1777085439452,-1532.0,9.511e-05,2]
[421117987,1777085439461,-1532.0,9.511e-05,2]
[421117988,1777085439470,-1532.0,9.511e-05,2]
[421117989,1777085439479,-1076.98290339,9.511e-05,2]
[421117990,1777085439489,-255.59792917,9.511e-05,2]
[421117991,1777085439498,-179.0,9.592e-05,3]
[421117992,1777085439507,-1081.0,9.592e-05,3]
[421117993,1777085439516,-350.0,9.631e-05,2]
[421117994,1777085439526,-591.13515854,9.632e-05,2]
[421117995,1777085439535,-706.08049089,9.632e-05,2]
[421117996,1777085439565,-750.77238487,9.632e-05,2]
[421117997,1777085439575,-481.40294995,9.67e-05,2]
[421117998,1777085439586,-1607.67049483,9.67e-05,2]
[421118000,1777085439608,-6821.71655522,9.67e-05,2]
[421118001,1777085439617,-14537.08,9.67e-05,2]
[421118002,1777085439627,-1279.03236391,9.67e-05,2]
[421118003,1777085439637,-816.80763609,9.67e-05,2]
[421118004,1777085439646,-292.66112025,9.696e-05,2]
[421118005,1777085439657,-57.33887975,9.696e-05,2]
[421118006,1777085439666,-351.22845105,9.698e-05,3]
[421118007,1777085439675,-153.16344728,9.75e-05,2]
[421118008,1777085439684,-80.34654668,9.787e-05,2]
[421118009,1777085439860,-705.855,9.787e-05,2]
[421118010,1777085439948,-204.16744432,9.787e-05,2]
[421118011,1777085439958,-304.83255568,9.787e-05,2]
[421118012,1777085440318,-898.40868332,9.787e-05,2]
[421118013,1777085440327,-909.288147,9.787e-05,2]
[421118014,1777085440337,-998.121031,9.787e-05,2]
[421118015,1777085440346,-895.559084,9.787e-05,2]
[421118016,1777085440356,-915.999198,9.787e-05,2]
[421118017,1777085440365,-469.0,9.801e-05,2]
[421118018,1777085440374,-303.85323126,9.868e-05,2]
[421118019,1777085440383,-80579.77402669,9.89e-05,3]
[421118020,1777085440395,-1597.81918676,9.89e-05,3]
[421118046,1777085442694,-416.0,9.22e-05,2]
[421118047,1777085442703,-5777.42926535,9.89e-05,3]
[421118048,1777085442798,-1343.23691637,9.89e-05,3]
[421118049,1777085442809,-13732.9411725,9.89e-05,3]
[421118050,1777085442820,-375.18789012,9.89e-05,3]
[421118051,1777085442956,-54343.09906614,9.89e-05,3]
[421118052,1777085442965,-345.75211,9.89e-05,2]
[421118053,1777085442975,-345.75211,9.89e-05,2]
[421118054,1777085442984,-345.75211,9.89e-05,2]
[421118055,1777085442993,-345.75211,9.89e-05,2]
[421118056,1777085443003,-151.0,9.89e-05,2]
[421118058,1777085443012,-250.0,9.908e-05,2]
[421118059,1777085443022,-160.0,0.0001,2]
[421118061,1777085443031,-160.0,0.0001,2]
[421118063,1777085443040,-162.0,0.0001,2]
[421118065,1777085443049,-478.0,0.0001,2]
[421118067,1777085443058,-166.67591206,0.0001,2]
[421118069,1777085443068,-569.9221304,0.0001,2]
[421118071,1777085443076,-2000.0,0.0001,2]
[421118073,1777085443085,-2000.0,0.0001,2]
[421118074,1777085443094,-2000.0,0.0001,2]
[421118076,1777085443104,-2000.0,0.0001,2]
[421118078,1777085443114,-2000.0,0.0001,2]
[421118079,1777085443123,-2000.0,0.0001,2]
[421118080,1777085443132,-200.0,0.0001,2]
[421118081,1777085443141,-500.0,0.0001,2]
[421118082,1777085443150,-151.0,0.0001,2]
[421118083,1777085443160,-500.0,0.0001,2]
[421118084,1777085443169,-151.0,0.0001,2]
[421118085,1777085443178,-500.0,0.0001,2]
[421118086,1777085443187,-151.0,0.0001,2]
[421118087,1777085443196,-500.0,0.0001,2]
[421118088,1777085443206,-151.0,0.0001,2]
[421118089,1777085443216,-500.0,0.0001,2]
[421118090,1777085443225,-151.0,0.0001,2]
[421118091,1777085443235,-500.0,0.0001,2]
[421118092,1777085443244,-151.0,0.0001,2]
[421118093,1777085443253,-500.0,0.0001,2]
[421118094,1777085443262,-151.0,0.0001,2]
[421118095,1777085443272,-500.0,0.0001,2]
[421118096,1777085443281,-151.0,0.0001,2]
[421118097,1777085443290,-500.0,0.0001,2]
[421118098,1777085443299,-151.0,0.0001,2]
[421118100,1777085443308,-500.0,0.0001,2]
[421118101,1777085443318,-151.0,0.0001,2]
[421118102,1777085443327,-500.0,0.0001,2]
[421118103,1777085443336,-151.0,0.0001,2]
[421118104,1777085443346,-500.0,0.0001,2]
[421118105,1777085443356,-151.0,0.0001,2]
[421118106,1777085443365,-500.0,0.0001,2]
[421118107,1777085443374,-500.0,0.0001,2]
[421118108,1777085443384,-500.0,0.0001,2]
[421118109,1777085443393,-500.0,0.0001,2]
[421118110,1777085443403,-500.0,0.0001,2]
[421118111,1777085443412,-500.0,0.0001,2]
[421118112,1777085443421,-500.0,0.0001,2]
[421118113,1777085443431,-500.0,0.0001,2]
[421118114,1777085443440,-500.0,0.0001,2]
[421118115,1777085443449,-500.0,0.0001,2]
[421118116,1777085443458,-152.17535116,0.0001,2]
[421118117,1777085443467,-500.0,0.0001,2]
[421118118,1777085443476,-500.0,0.0001,2]
[421118119,1777085443486,-1337.30371513,0.0001,2]
[421118120,1777085443495,-823.0,0.00010158,2]
[421118121,1777085443505,-1986.0,0.00010158,2]
[421118122,1777085443514,-5530.0,0.000102,3]
[421118123,1777085443524,-5224.02359445,0.00010274,2]
[421118124,1777085445632,-3142.22123697,0.00010274,2]
[421118126,1777085872765,-500.0,7.399e-05,2]
[421118127,1777085872797,-578.20924308,7.633e-05,2]
[421118128,1777085872834,-300.0,7.7e-05,2]
[421118129,1777085872867,-300.0,7.8e-05,2]
[421118130,1777085872900,-700.0,7.8e-05,2]
[421118131,1777085872923,-500.0,7.9e-05,2]
[421118132,1777085872937,-100.0,7.9e-05,2]
[421118133,1777085872948,-478.20924308,7.9e-05,2]
[421118134,1777085872961,-300.0,7.9e-05,2]
[421118135,1777085872980,-300.0,7.9e-05,2]
[421118136,1777085873003,-21.79075692,7.9e-05,2]
[421118137,1777085873014,-300.0,7.999e-05,2]
[421118138,1777085873025,-378.20924308,8e-05,2]
[421118139,1777085873039,-243.59151384,8e-05,2]
[421118140,1777085873077,-278.19924308,8e-05,2]
[421118141,1777085873109,-1500.0,8e-05,2]
[421118142,1777085873141,-695.39793187,8.293e-05,2]
[421118143,1777085873172,-155.77960159,8.293e-05,2]
[421118144,1777085873183,-122.41964149,8.293e-05,2]
[421118145,1777085873201,-30.54163305,8.293e-05,2]
[421118146,1777085873210,-174.61919142,8.293e-05,2]
[421118147,1777085873221,-155.0,8.296e-05,2]
[421118148,1777085873231,-150.0,8.296e-05,2]
[421118149,1777085873248,-989.83917553,8.297e-05,3]
[421118150,1777085873262,-114.01095509,8.297e-05,3]
[421118156,1777086345161,-150.0,7.447e-05,2]
[421118157,1777086345190,-150.0,7.447e-05,2]
[421118158,1777086345221,-150.0,7.447e-05,2]
[421118159,1777086345251,-150.87380379,7.447e-05,2]
[421118160,1777086345280,-150.0,7.447e-05,2]
[421118161,1777086345311,-150.0,7.447e-05,2]
[421118162,1777086345343,-150.0,7.447e-05,2]
[421118163,1777086345372,-150.0,7.539e-05,2]
[421118164,1777086345403,-150.0,7.63e-05,2]
[421118165,1777086345432,-150.0,7.653e-05,2]
[421118166,1777086345462,-150.0,7.722e-05,2]
[421118167,1777086345492,-150.0,7.722e-05,2]
[421118168,1777086345522,-150.0,7.814e-05,2]
[421118169,1777086345550,-150.0,7.86e-05,2]
[421118170,1777086345578,-150.0,7.86e-05,2]
[421118171,1777086345607,-150.0,7.86e-05,2]
[421118172,1777086345635,-48.26239242,7.86e-05,2]
[421118173,1777086345820,-101.73760758,7.86e-05,2]
[421118174,1777086345851,-150.0,7.906e-05,2]
[421118175,1777086345881,-150.0,7.998e-05,2]
[421118176,1777086345912,-150.0,7.998e-05,2]
[421118177,1777086345942,-150.0,8.067e-05,2]
[421118178,1777086345971,-150.0,8.09e-05,2]
[421118179,1777086346000,-224.74978484,8.132e-05,2]
[421118180,1777086346183,-2152.97478484,8.132e-05,2]
[421118181,1777086347969,-694.06043032,8.132e-05,2]
[421118182,1777086347999,-209.979,8.132e-05,2]
[421118183,1777086348030,-150.0,8.182e-05,2]
[421118184,1777086348061,-163.43941887,8.274e-05,2]
[421118185,1777086348091,-151.55043311,8.274e-05,2]
[421118186,1777086348123,-221.16271067,8.274e-05,2]
[421118187,1777086348155,-158.65291331,8.274e-05,2]
[421118188,1777086348183,-200.84850799,8.274e-05,2]
[421118189,1777086348215,-180.69513115,8.274e-05,2]
[421118190,1777086348246,-150.0,8.296e-05,2]
[421118191,1777086348369,-578.20924308,8.297e-05,2]
[421118192,1777086348402,-695.39793187,8.297e-05,2]
[421118195,1777086386128,150.0,0.00010518,30]
[421118203,1777086631921,-3700.0,7.7e-05,2]
[421118204,1777086631932,-300.0,7.799e-05,2]
[421118205,1777086631942,-7400.0,7.8e-05,2]
[421118206,1777086631952,-11200.0,7.9e-05,2]
[421118207,1777086631962,-12579.87716434,7.9e-05,2]
[421118208,1777086631975,-28725.67325128,7.9e-05,2]
[421118209,1777086632029,-4893.39615473,7.9e-05,2]
[421118219,1777086638161,-500.0,7.899e-05,2]
[421118220,1777086638172,-500.0,7.899e-05,2]
[421118221,1777086638182,-500.0,7.899e-05,2]
[421118222,1777086638193,-500.0,7.899e-05,2]
[421118223,1777086638203,-500.0,7.899e-05,2]
[421118224,1777086638214,-500.0,7.899e-05,2]
[421118225,1777086638224,-500.0,7.899e-05,2]
[421118226,1777086638234,-500.0,7.899e-05,2]
[421118227,1777086638244,-500.0,7.899e-05,2]
[421118228,1777086638254,-370.56796967,7.899e-05,2]
[421118229,1777086638264,-500.0,7.899e-05,2]
[421118230,1777086638274,-500.0,7.899e-05,2]
[421118231,1777086638284,-500.0,7.899e-05,2]
[421118232,1777086638293,-500.0,7.899e-05,2]
[421118233,1777086638303,-500.0,7.899e-05,2]
[421118234,1777086638313,-500.0,7.899e-05,2]
[421118235,1777086638323,-500.0,7.899e-05,2]
[421118236,1777086638334,-500.0,7.899e-05,2]
[421118237,1777086638345,-500.0,7.899e-05,2]
[421118238,1777086638355,-500.0,7.899e-05,2]
[421118239,1777086638364,-500.0,7.899e-05,2]
[421118240,1777086638374,-500.0,7.899e-05,2]
[421118242,1777086638384,-500.0,7.899e-05,2]
[421118244,1777086638394,-500.0,7.899e-05,2]
[421118246,1777086638404,-500.0,7.899e-05,2]
[421118247,1777086638414,-500.0,7.899e-05,2]
[421118248,1777086638424,-500.0,7.899e-05,2]
[421118249,1777086638434,-500.0,7.899e-05,2]
[421118250,1777086638450,-500.0,7.899e-05,2]
[421118251,1777086638460,-500.0,7.899e-05,2]
[421118252,1777086638470,-500.0,7.899e-05,2]
[421118253,1777086638480,-500.0,7.899e-05,2]
[421118254,1777086638490,-500.0,7.899e-05,2]
[421118255,1777086638500,-500.0,7.899e-05,2]
[421118256,1777086638511,-500.0,7.899e-05,2]
[421118257,1777086638521,-500.0,7.899e-05,2]
[421118258,1777086638531,-500.0,7.899e-05,2]
[421118260,1777086638541,-320.83285558,7.899e-05,2]
[421118263,1777086638555,-179.16714442,7.899e-05,2]
[421118265,1777086638564,-500.0,7.899e-05,2]
[421118267,1777086638574,-500.0,7.899e-05,2]
[421118268,1777086638585,-500.0,7.899e-05,2]
[421118270,1777086638595,-500.0,7.899e-05,2]
[421118272,1777086638606,-12681.52013942,7.9e-05,2]
[421118276,1777086638632,-367134.87509023,7.9e-05,2]
[421118278,1777086638642,-14900.0,8e-05,2]
[421118280,1777086638652,-695.39793187,8.293e-05,2]
[421118282,1777086638662,-500.0,8.296e-05,2]
[421118284,1777086638673,-355.3515659,8.296e-05,2]
[421118286,1777086638683,-208.68173015,8.296e-05,2]
[421118289,1777086638694,-500.0,8.296e-05,2]
[421118291,1777086638705,-573.95743558,8.296e-05,2]
[421118293,1777086638715,-500.0,8.296e-05,2]
[421118295,1777086638725,-500.0,8.296e-05,2]
[421118297,1777086638736,-500.0,8.297e-05,2]
[421118299,1777086638746,-578.20924308,8.298e-05,2]
[421118300,1777086638756,-430.0,8.613e-05,5]
[421118301,1777086638765,-502.12043233,8.874e-05,2]
[421118302,1777086638775,-500.0,8.874e-05,2]
[421118303,1777086638785,-500.0,8.874e-05,2]
[421118304,1777086638795,-259.50923041,8.897e-05,2]
[421118305,1777086638805,-205.9222,8.9e-05,2]
[421118306,1777086638816,-12222.8,8.9e-05,2]
[421118307,1777086638826,-150.99,8.9e-05,2]
[421118308,1777086638837,-299.99,8.9e-05,2]
[421118309,1777086638853,-14096.0,8.9e-05,2]
[421118310,1777086638863,-4999.99,8.9e-05,2]
[421118311,1777086638873,-500.0,8.904e-05,2]
[421118312,1777086638883,-500.0,8.904e-05,2]
[421118313,1777086638893,-500.0,8.904e-05,2]
[421118314,1777086638903,-585.86139736,8.904e-05,2]
[421118315,1777086638912,-500.0,8.948e-05,2]
[421118316,1777086638922,-500.0,8.948e-05,2]
[421118317,1777086638932,-500.0,8.948e-05,2]
[421118318,1777086638941,-500.0,8.948e-05,2]
[421118319,1777086638951,-500.0,8.948e-05,2]
[421118320,1777086638961,-500.0,8.948e-05,2]
[421118321,1777086638971,-500.0,8.948e-05,2]
[421118322,1777086638981,-500.0,8.948e-05,2]
[421118323,1777086638991,-500.0,8.948e-05,2]
[421118324,1777086639001,-500.0,8.948e-05,2]
[421118325,1777086639011,-500.0,8.948e-05,2]
[421118326,1777086639020,-500.0,8.948e-05,2]
[421118327,1777086639030,-500.0,8.948e-05,2]
[421118328,1777086639041,-500.0,8.948e-05,2]
[421118329,1777086639051,-500.0,8.948e-05,2]
[421118330,1777086639061,-500.0,8.948e-05,2]
[421118331,1777086639072,-500.0,8.948e-05,2]
[421118332,1777086639082,-500.0,8.948e-05,2]
[421118333,1777086639092,-500.0,8.948e-05,2]
[421118334,1777086639102,-500.0,8.948e-05,2]
[421118335,1777086639112,-500.0,8.948e-05,2]
[421118336,1777086639123,-239.16309502,8.948e-05,2]
[421118337,1777086639133,-5009.24504834,9e-05,2]
[421118338,1777086639143,-544.0,9.105e-05,5]
[421118339,1777086639153,-33091.4848,9.184e-05,2]
[421118340,1777086639162,-2475.0,9.265e-05,2]
[421118341,1777086639172,-416.0,9.265e-05,2]
[421118342,1777086639182,-667.78630236,9.357e-05,2]
[421118343,1777086639192,-1349.0,9.365e-05,2]
[421118344,1777086639201,-3531.0,9.365e-05,2]
[421118345,1777086639211,-423.729,9.365e-05,2]
[421118346,1777086639221,-160.0,9.388e-05,2]
[421118347,1777086639231,-162.24807931,9.388e-05,2]
[421118348,1777086639245,-4670.4680689,9.575e-05,2]
[421118349,1777086639256,-150.7716777,9.589e-05,2]
[421118350,1777086639266,-501.4160514,9.843e-05,2]
[421118351,1777086639276,-501.66907075,9.843e-05,2]
[421118352,1777086639286,-502.59223585,9.843e-05,2]
[421118353,1777086639295,-501.21749818,9.843e-05,2]
[421118354,1777086639306,-407.79718107,9.843e-05,2]
[421118355,1777086639315,-502.93754583,9.843e-05,2]
[421118356,1777086639326,-1117.0,9.868e-05,2]
[421118357,1777086639336,-200.0,0.0001,2]
[421118358,1777086639346,-500.0,0.0001,2]
[421118359,1777086639355,-151.0,0.0001,2]
[421118360,1777086639365,-500.0,0.0001,2]
[421118361,1777086639375,-151.0,0.0001,2]
[421118362,1777086639384,-500.0,0.0001,2]
[421118363,1777086639394,-151.0,0.0001,2]
[421118364,1777086639405,-500.0,0.0001,2]
[421118365,1777086639415,-151.0,0.0001,2]
[421118366,1777086639425,-500.0,0.0001,2]
[421118367,1777086639435,-151.0,0.0001,2]
[421118368,1777086639445,-500.0,0.0001,2]
[421118369,1777086639455,-151.0,0.0001,2]
[421118370,1777086639987,-500.0,0.0001,2]
[421118371,1777086639999,-151.0,0.0001,2]
[421118373,1777086640009,-500.0,0.0001,2]
[421118374,1777086640019,-151.0,0.0001,2]
[421118375,1777086640030,-500.0,0.0001,2]
[421118376,1777086640040,-151.0,0.0001,2]